bitfinex/quotes_SOLUSD_20251120
["timestamp","ask_amount","ask_price","bid_price","bid_amount"]
[1763677800120,86.76667535,136.4,136.35,1.76]
[1763677800406,86.76667535,136.4,136.34,18.80096]
[1763677800725,86.76667535,136.4,136.34,2.44]
[1763677801316,86.76667535,136.4,136.34,1.76]
[1763677801511,84.06813089,136.4,136.34,0.68]
[1763677801817,84.06813089,136.4,136.34,2.44]
[1763677802021,84.06813089,136.4,136.34,0.68]
[1763677802231,84.06813089,136.4,136.34,2.44]
[1763677802538,76.73672565,136.4,136.35,0.68]
[1763677803508,74.05114491,136.4,136.35,0.68]
[1763677804034,74.05114491,136.4,136.34,1.76]
[1763677804539,59.34246902,136.4,136.34,2.44]
[1763677804833,18.12096,136.37,136.31,2.44]
[1763677805725,18.01555495,136.39,136.31,2.44]
[1763677806130,8.22672726,136.38,136.31,2.44]
[1763677806335,7.33299112,136.37,136.31,0.68]
[1763677806642,9.78882769,136.36,136.28,0.68]
[1763677806850,54.53458352,136.36,136.22,0.2]
[1763677807018,18.01555495,136.34,136.23,1.82]
[1763677807220,18.01555495,136.34,136.23,19.94096]
[1763677807432,4.93838953,136.33,136.24,0.68]
[1763677807616,18.12096,136.31,136.24,0.68]
[1763677807821,4.93866587,136.3,136.24,0.68]
[1763677808116,2.94496594,136.31,136.24,0.68]
[1763677808335,15.56414464,136.29,136.24,0.68]
[1763677808839,8.22672726,136.27,136.22,0.88]
[1763677809218,8.22672726,136.27,136.23,0.68]
[1763677809521,8.72672726,136.26,136.22,0.2]
[1763677809846,85.05106509,136.29,136.22,0.2]
[1763677810010,85.58928547,136.29,136.22,0.2]
[1763677810210,73.2251207,136.29,136.22,0.2]
[1763677810413,12.36416477,136.3,136.23,0.68]
[1763677810717,54.85792754,136.31,136.23,0.68]
[1763677811532,18.12096,136.28,136.22,0.2]
[1763677811732,8.13318359,136.28,136.22,0.2]
[1763677811911,12.36416477,136.29,136.22,0.88]
[1763677812620,9.78882769,136.28,136.22,0.2]
[1763677813139,9.78882769,136.28,136.2,0.88]
[1763677813641,22.15299246,136.28,136.2,0.88]
[1763677813838,9.78882769,136.27,136.2,0.88]
[1763677814226,18.12096,136.24,136.2,0.2]
[1763677814444,25.46141931,136.24,136.2,0.2]
[1763677814743,18.75025095,136.24,136.2,0.2]
[1763677815132,37.10022159,136.24,136.2,0.2]
[1763677815935,25.69042995,136.24,136.2,0.2]
[1763677816245,0.14216157,136.22,136.2,0.2]
[1763677816447,9.78882769,136.2,136.19,0.2]
[1763677816941,22.21371056,136.2,136.19,0.2]
[1763677817148,46.27013446,136.26,136.19,0.2]
[1763677817530,46.27013446,136.26,136.19,0.88]
[1763677818031,36.48130677,136.26,136.2,0.68]
[1763677818225,36.78496103,136.27,136.2,0.68]
[1763677818654,53.60904536,136.26,136.2,0.68]
[1763677819248,75.66762043,136.26,136.2,0.68]
[1763677819643,12.24650089,136.25,136.2,0.68]
[1763677819852,4.90700882,136.24,136.2,0.68]
[1763677820051,40.17953507,136.26,136.2,0.68]
[1763677820218,30.18165868,136.26,136.2,0.68]
[1763677820425,6.13034524,136.21,136.2,0.68]
[1763677820734,6.13034524,136.21,136.2,0.82216157]
[1763677820937,4.69034524,136.21,136.2,0.82216157]
[1763677821244,12.06069868,136.26,136.21,0.14216157]
[1763677821420,18.83096,136.28,136.21,0.14216157]
[1763677821624,18.83096,136.28,136.22,0.69]
[1763677821850,40.5692083,136.28,136.22,0.69]
[1763677822020,39.8592083,136.28,136.22,0.69]
[1763677822224,29.07612816,136.28,136.22,0.69]
[1763677822522,65.97804381,136.28,136.22,0.69]
[1763677822726,9.78882769,136.27,136.2,1.76]
[1763677822923,9.78882769,136.27,136.21,0.69]
[1763677823146,46.78671064,136.27,136.21,0.69]
[1763677823341,9.78882769,136.27,136.21,0.69]
[1763677823725,21.7382483,136.28,136.22,0.14216157]
[1763677823951,7.3376399,136.29,136.23,0.69]
[1763677824148,0.71,136.29,136.23,0.69]
[1763677824341,43.67113021,136.3,136.23,0.69]
[1763677824853,46.13614024,136.3,136.23,0.69]
[1763677825452,9.78882769,136.3,136.23,0.69]
[1763677827022,17.12572202,136.3,136.23,0.69]
[1763677827427,19.1209426,136.31,136.23,0.69]
[1763677828427,7.33638375,136.31,136.23,0.69]
[1763677829944,46.39171643,136.32,136.31,4e-08]
[1763677830151,9.78882769,136.31,136.26,0.69]
[1763677830552,21.540351,136.32,136.26,0.69]
[1763677830753,9.78882769,136.32,136.26,0.69]
[1763677830959,17.12450844,136.32,136.26,0.69]
[1763677831765,4.89959693,136.31,136.26,0.69]
[1763677831949,4.89959693,136.3,136.26,0.69]
[1763677832148,4.89959693,136.29,136.26,0.69]
[1763677832335,4.89959693,136.28,136.26,0.69]
[1763677832535,4.90057135,136.27,136.26,0.69]
[1763677833356,4.90057135,136.27,136.22,18.12096]
[1763677833674,4.90057135,136.27,136.23,0.67]
[1763677833675,9.78882769,136.27,136.23,0.67]
[1763677833847,18.12096,136.28,136.23,0.67]
[1763677834246,7.33837234,136.27,136.21,1.76]
[1763677834572,15.49823281,136.28,136.22,0.67]
[1763677834882,6.63347657,136.28,136.22,0.67]
[1763677835038,6.63347657,136.28,136.21,0.67]
[1763677835039,9.78882769,136.27,136.21,0.67]
[1763677835244,0.14216157,136.26,136.19,0.87]
[1763677835456,9.78882769,136.25,136.19,2.63]
[1763677835751,10.10882769,136.25,136.19,2.13]
[1763677835947,0.32,136.24,136.19,0.37]
[1763677836350,7.34052704,136.23,136.19,0.37]
[1763677836557,19.86866396,136.25,136.19,0.37]
[1763677836968,9.78882769,136.25,136.17,19.88096]
[1763677837157,45.97912109,136.25,136.18,0.67]
[1763677837363,45.97912109,136.25,136.17,2.43]
[1763677837884,71.66719448,136.25,136.17,0.67]
[1763677838552,9.78882769,136.22,136.17,0.67]
[1763677838982,0.66,136.21,136.16,1.76]
[1763677839199,0.66,136.21,136.15,0.2]
[1763677839357,0.66,136.21,136.15,20.08096]
[1763677839546,0.66,136.21,136.15,18.32096]
[1763677839751,8.17709087,136.19,136.15,0.2]
[1763677839978,0.66,136.21,136.19,6.62609399]
[1763677840192,0.66,136.21,136.15,0.2]
[1763677840456,10.41075719,136.21,136.15,0.2]
[1763677840658,7.72393338,136.21,136.15,0.87]
[1763677840983,7.341976,136.21,136.15,0.87]
[1763677841166,7.341976,136.21,136.15,0.2]
[1763677841475,7.341976,136.21,136.16,0.67]
[1763677842754,72.95029638,136.23,136.16,0.67]
[1763677843778,7.34106592,136.22,136.16,0.67]
[1763677844083,53.17091698,136.22,136.16,0.67]
[1763677844288,43.85193118,136.22,136.16,0.67]
[1763677844460,40.94730491,136.21,136.16,0.67]
[1763677844782,36.03460076,136.21,136.15,0.2]
[1763677844964,64.65235775,136.22,136.15,0.87]
[1763677845166,28.14149249,136.22,136.15,0.87]
[1763677845346,28.14149249,136.22,136.15,0.2]
[1763677846260,7.34160487,136.21,136.15,0.87]
[1763677846857,51.87489374,136.22,136.15,0.87]
[1763677847058,61.37488974,136.22,136.15,0.87]
[1763677847697,61.37488974,136.22,136.15,0.2]
[1763677847698,18.12096,136.18,136.15,0.2]
[1763677847855,18.12096,136.18,136.13,0.2]
[1763677848262,18.12096,136.18,136.13,0.87]
[1763677848488,18.12096,136.18,136.13,0.2]
[1763677848896,116.34316864,136.21,136.13,0.2]
[1763677849377,43.77433291,136.19,136.13,0.2]
[1763677849678,9.78882769,136.18,136.13,0.2]
[1763677850178,10.22719344,136.18,136.11,1.76]
[1763677850383,0.14216157,136.17,136.1,1.76]
[1763677853791,15.74858734,136.17,136.1,2.46]
[1763677853993,15.74858734,136.17,136.09,1.76]
[1763677854489,23.09235765,136.17,136.09,1.76]
[1763677854894,7.34377031,136.17,136.1,0.14216157]
[1763677855077,0.06665343,136.17,136.1,0.14216157]
[1763677855901,0.06665343,136.17,136.11,0.7]
[1763677856595,12.30128626,136.16,136.11,0.7]
[1763677856802,4.92051511,136.15,136.11,0.7]
[1763677856998,4.92051511,136.14,136.11,0.7]
[1763677857297,0.06665343,136.17,136.11,0.7]
[1763677858215,36.88494924,136.17,136.11,0.7]
[1763677858903,0.06665343,136.17,136.11,0.7]
[1763677859284,70.14507029,136.18,136.11,0.7]
[1763677860190,72.23223207,136.18,136.11,0.7]
[1763677861198,62.18790424,136.18,136.11,0.7]
[1763677861505,62.61439326,136.18,136.11,0.7]
[1763677862404,61.93439326,136.18,136.11,0.7]
[1763677862594,62.61439326,136.18,136.11,0.7]
[1763677863001,9.78882769,136.2,136.12,0.14216157]
[1763677863180,148.28874629,136.22,136.12,0.14216157]
[1763677863181,9.499996,136.22,136.12,28.05194926]
[1763677863380,43.73139986,136.22,136.14,0.14216157]
[1763677863801,43.73139986,136.22,136.15,0.7]
[1763677864508,71.74099048,136.22,136.15,0.7]
[1763677864916,52.70832568,136.22,136.15,0.7]
[1763677865092,9.65692582,136.22,136.15,0.7]
[1763677865290,36.54579932,136.23,136.15,0.7]
[1763677865787,46.23894395,136.23,136.16,0.14216157]
[1763677866190,46.23894395,136.23,136.16,2.60216157]
[1763677866395,46.23894395,136.23,136.16,0.84216157]
[1763677866620,18.12096,136.2,136.14,0.7]
[1763677866780,18.12096,136.2,136.06,0.7]
[1763677866978,18.80096,136.2,136.11,0.14216157]
[1763677867612,36.70929642,136.2,136.12,0.7]
[1763677868294,7.34268301,136.19,136.12,0.7]
[1763677868479,25.69939055,136.19,136.12,0.7]
[1763677869106,4.91710373,136.18,136.12,0.7]
[1763677869303,4.91710373,136.17,136.12,0.7]
[1763677869610,25.69939055,136.19,136.12,0.7]
[1763677869611,4.91803731,136.16,136.12,0.7]
[1763677869780,18.35670754,136.19,136.12,0.7]
[1763677869981,8.19676073,136.18,136.12,0.7]
[1763677870290,18.35670754,136.19,136.18,0.18082693]
[1763677870592,18.35670754,136.19,136.12,0.7]
[1763677870593,26.37939055,136.19,136.12,0.7]
[1763677871109,14.62192193,136.23,136.14,18.12096]
[1763677871304,17.03384769,136.23,136.16,0.14216157]
[1763677871607,21.96375862,136.24,136.16,0.14216157]
[1763677871608,7.34018608,136.24,136.16,0.14216157]
[1763677871807,7.34018608,136.24,136.18,0.14216157]
[1763677871996,53.70067064,136.24,136.18,0.14216157]
[1763677872198,53.70067064,136.24,136.19,0.7]
[1763677873106,16.92531236,136.24,136.19,0.7]
[1763677873310,53.70067064,136.24,136.19,0.7]
[1763677873619,44.39695843,136.24,136.19,0.7]
[1763677874800,51.73714451,136.24,136.19,0.7]
[1763677875517,36.57793317,136.26,136.19,0.7]
[1763677875689,46.4041761,136.26,136.19,0.7]
[1763677875888,9.82624293,136.26,136.2,0.14216157]
[1763677876084,73.61847471,136.3,136.2,0.14216157]
[1763677876085,9.78882769,136.3,136.2,0.14216157]
[1763677876289,19.3385893,136.3,136.22,18.12096]
[1763677876483,19.3385893,136.3,136.23,1.76]
[1763677876709,36.7757165,136.29,136.23,2.46]
[1763677877384,62.45705996,136.29,136.23,2.46]
[1763677877585,25.68134346,136.29,136.23,2.46]
[1763677879101,62.05684323,136.29,136.23,2.46]
[1763677879302,25.72134346,136.29,136.23,2.46]
[1763677879606,7.33837234,136.27,136.23,2.46]
[1763677879812,18.38404799,136.29,136.23,2.46]
[1763677880119,0.04,136.29,136.23,2.46]
[1763677880625,31.66215822,136.3,136.29,7.81987149]
[1763677880824,31.66215822,136.3,136.23,2.46]
[1763677881125,19.3385893,136.3,136.23,2.46]
[1763677881338,45.01791963,136.3,136.23,2.46]
[1763677881495,7.33783387,136.28,136.24,0.7]
[1763677881694,31.66215822,136.3,136.24,0.7]
[1763677882009,22.28398895,136.3,136.24,0.7]
[1763677882503,6.16040514,136.25,136.24,0.7]
[1763677882693,4.72040514,136.26,136.25,0.14216157]
[1763677883092,9.54976161,136.3,136.25,10.63098926]
[1763677883304,22.93078427,136.32,136.25,10.63098926]
[1763677883624,0.7,136.31,136.26,0.02]
[1763677883800,22.23078427,136.32,136.26,0.02]
[1763677883801,12.92167392,136.32,136.26,0.02]
[1763677884003,9.78395147,136.32,136.26,0.02]
[1763677884220,39.04308458,136.32,136.25,0.14216157]
[1763677884418,17.11969617,136.32,136.26,1.76]
[1763677885225,17.11969617,136.32,136.26,2.46]
[1763677885507,6.64647503,136.32,136.26,2.46]
[1763677885929,15.72444531,136.33,136.26,1.76]
[1763677886105,22.48308706,136.33,136.27,0.7]
[1763677886422,54.8195319,136.34,136.27,0.7]
[1763677887296,62.15437181,136.34,136.27,0.7]
[1763677887509,62.15437181,136.34,136.28,0.14216157]
[1763677887920,61.77515042,136.34,136.28,0.84216157]
[1763677888128,7.33483991,136.34,136.28,18.96312157]
[1763677888514,16.82038422,136.34,136.29,0.7]
[1763677888828,7.33483991,136.34,136.29,0.7]
[1763677889201,29.85369562,136.34,136.29,0.7]
[1763677889426,17.05206997,136.34,136.29,0.7]
[1763677890018,7.80109716,136.34,136.29,0.7]
[1763677890229,18.33567131,136.35,136.29,0.7]
[1763677890726,44.11008973,136.36,136.29,0.7]
[1763677891811,9.93049728,136.36,136.29,0.7]
[1763677892124,7.28070601,136.36,136.29,0.7]
[1763677892829,53.52092098,136.36,136.29,0.7]
[1763677893409,17.09293692,136.36,136.29,0.7]
[1763677893826,4.89264828,136.35,136.29,0.7]
[1763677894034,17.09293692,136.36,136.29,0.7]
[1763677894035,9.81223091,136.36,136.29,0.7]
[1763677894232,54.70853856,136.37,136.29,0.7]
[1763677894437,28.24437551,136.38,136.3,9.93098926]
[1763677894744,21.57268191,136.38,136.32,9.93098926]
[1763677895039,88.18560351,136.4,136.34,0.14216157]
[1763677895540,88.18560351,136.4,136.35,0.67]
[1763677895715,73.38931809,136.4,136.35,0.67]
[1763677895912,7.33193505,136.39,136.35,0.67]
[1763677896141,73.46931809,136.4,136.36,1.76]
[1763677896142,27.32395974,136.4,136.36,1.76]
[1763677896313,36.95736734,136.4,136.36,1.76]
[1763677896535,36.95736734,136.4,136.37,0.67]
[1763677897051,59.334313,136.4,136.37,0.67]
[1763677898345,49.37594767,136.4,136.37,0.67]
[1763677900274,39.35160415,136.4,136.37,0.67]
[1763677900672,24.9764571,136.4,136.37,0.67]
[1763677900854,7.3299167,136.43,136.37,0.67]
[1763677902079,28.84190233,136.43,136.37,0.67]
[1763677902265,36.4311639,136.44,136.37,0.67]
[1763677902651,0.08,136.44,136.37,0.67]
[1763677903385,43.76051605,136.44,136.37,0.67]
[1763677903882,53.46785957,136.44,136.37,0.67]
[1763677904377,9.78734352,136.44,136.37,0.67]
[1763677904585,77.00166289,136.45,136.38,0.14216157]
[1763677904874,77.08166289,136.45,136.38,0.14216157]
[1763677905078,77.08166289,136.45,136.39,0.67]
[1763677905273,40.36332647,136.45,136.39,0.67]
[1763677905780,50.85658709,136.45,136.39,0.67]
[1763677905952,7.40935215,136.44,136.39,0.67]
[1763677906290,4.87154563,136.43,136.39,0.67]
[1763677906452,4.87000782,136.42,136.39,0.67]
[1763677906780,50.85658709,136.45,136.39,0.67]
[1763677907085,60.78635186,136.45,136.39,0.67]
[1763677907249,60.78635186,136.45,136.4,0.14216157]
[1763677907250,32.46125651,136.45,136.4,0.14216157]
[1763677907455,7.42844742,136.46,136.41,1.76]
[1763677907655,7.42844742,136.46,136.41,2.43]
[1763677907878,7.42844742,136.46,136.42,0.67]
[1763677908188,0.07,136.45,136.38,18.12096]
[1763677908472,16.94286247,136.46,136.39,1.76]
[1763677908473,69.92327871,136.46,136.39,1.76]
[1763677908681,62.93049531,136.46,136.39,2.43]
[1763677909279,85.03810757,136.46,136.39,2.43]
[1763677909473,92.36655499,136.46,136.39,2.43]
[1763677909980,92.36655499,136.46,136.4,0.67]
[1763677910352,102.02459424,136.46,136.4,0.67]
[1763677910558,36.71833642,136.45,136.4,0.67]
[1763677910863,65.54180989,136.46,136.4,0.67]
[1763677911284,47.22142297,136.46,136.4,0.67]
[1763677911526,39.09409893,136.46,136.4,0.67]
[1763677911979,31.76565151,136.46,136.4,0.67]
[1763677912195,44.20937009,136.47,136.4,0.67]
[1763677912699,22.08400285,136.47,136.41,0.14216157]
[1763677912872,10.84756979,136.5,136.43,0.14216157]
[1763677912873,8.12732404,136.5,136.43,0.14216157]
[1763677913075,27.66796067,136.51,136.44,1.76]
[1763677913277,8.22732404,136.51,136.45,0.14216157]
[1763677913506,0.1,136.51,136.45,0.84216157]
[1763677914582,15.55153349,136.54,136.45,0.84216157]
[1763677914985,8.22732404,136.54,136.45,0.84216157]
[1763677915188,0.1,136.54,136.45,0.84216157]
[1763677915390,17.8387612,136.54,136.47,18.26312157]
[1763677915690,9.71143716,136.54,136.5,0.14216157]
[1763677915890,9.71143716,136.54,136.53,0.7]
[1763677915891,2.25239965,136.54,136.53,0.7]
[1763677916096,0.1,136.57,136.53,20.58096]
[1763677916267,0.1,136.57,136.54,0.7]
[1763677916779,5.63606276,136.62,136.54,0.7]
[1763677917372,43.55507663,136.63,136.54,0.7]
[1763677917687,7.3186164,136.64,136.54,0.7]
[1763677917892,37.87240206,136.67,136.57,0.14216157]
[1763677918071,7.31760866,136.66,136.57,0.14216157]
[1763677918271,16.97081971,136.66,136.58,0.7]
[1763677918481,4.85107227,136.65,136.59,2.28008333]
[1763677918676,9.65321105,136.66,136.59,2.28008333]
[1763677919003,58.06431171,136.67,136.59,1.58008333]
[1763677919190,39.94335171,136.67,136.6,0.7]
[1763677919394,49.5307696,136.67,136.6,0.7]
[1763677919798,45.69981995,136.67,136.6,0.7]
[1763677920001,7.31783073,136.66,136.6,0.7]
[1763677920199,16.90447425,136.67,136.6,0.7]
[1763677920693,9.58741789,136.67,136.6,0.7]
[1763677920866,57.07425148,136.68,136.6,0.7]
[1763677921078,37.22659254,136.68,136.67,1.1343192]
[1763677921286,34.75412422,136.68,136.62,1.76]
[1763677921484,34.75412422,136.68,136.6,0.7]
[1763677921485,47.07769314,136.68,136.6,0.7]
[1763677921689,47.07769314,136.68,136.61,1.76]
[1763677921891,39.76133377,136.68,136.6,0.7]
[1763677922092,39.76133377,136.68,136.61,1.76]
[1763677922093,9.68932524,136.68,136.61,1.76]
[1763677922398,19.63894568,136.7,136.6,0.7]
[1763677922399,44.01143712,136.7,136.62,1.76]
[1763677922586,58.91208503,136.7,136.63,0.7]
[1763677922903,31.78124426,136.7,136.63,0.7]
[1763677923197,11.55577918,136.71,136.63,0.7]
[1763677923380,9.25068524,136.71,136.63,0.7]
[1763677924278,1.93593088,136.71,136.64,1.76]
[1763677924685,1.93593088,136.71,136.65,0.7]
[1763677924881,8.80352905,136.71,136.65,0.7]
[1763677925096,43.50983996,136.72,136.65,0.7]
[1763677925278,22.18190125,136.72,136.65,0.7]
[1763677925480,25.43473711,136.73,136.65,0.7]
[1763677925890,35.12605447,136.73,136.65,0.7]
[1763677926180,9.69131736,136.73,136.66,1.76]
[1763677926520,16.90190302,136.75,136.66,1.76]
[1763677926799,16.90190302,136.75,136.67,0.7]
[1763677926800,16.90144323,136.75,136.67,0.7]
[1763677927001,6.94830229,136.76,136.67,0.7]
[1763677927176,48.01813269,136.77,136.67,0.7]
[1763677927380,70.01858914,136.77,136.67,0.7]
[1763677927876,42.95821954,136.77,136.67,0.7]
[1763677928299,42.95821954,136.77,136.68,1.76]
[1763677928701,42.95821954,136.77,136.69,0.7]
[1763677929082,29.13683568,136.77,136.69,0.7]
[1763677929401,0.07374307,136.78,136.69,0.7]
[1763677930700,4.79611444,136.77,136.71,18.12096]
[1763677930898,0.07374307,136.78,136.72,0.14216157]
[1763677930899,21.94972924,136.78,136.72,0.14216157]
[1763677931103,7.30843209,136.83,136.77,7.22885681]
[1763677931104,9.8383143,136.8,136.77,7.22885681]
[1763677931279,171.60797837,136.84,136.78,1.76]
[1763677931475,21.47604041,136.84,136.78,2.46]
[1763677931682,7.30744604,136.85,136.79,0.7]
[1763677933202,47.48852917,136.86,136.77,7.92885681]
[1763677933591,47.48852917,136.86,136.78,1.76]
[1763677933806,47.48852917,136.86,136.78,2.46]
[1763677934289,47.48852917,136.86,136.79,0.7]
[1763677934290,7.30744604,136.85,136.79,0.7]
[1763677934603,83.9539852,136.85,136.78,1.76]
[1763677935301,76.64653916,136.85,136.78,1.76]
[1763677936003,0.14216157,136.83,136.77,7.22885681]
[1763677936207,0.14216157,136.83,136.74,0.7]
[1763677936208,18.12096,136.82,136.74,2.46]
[1763677937113,18.12096,136.82,136.75,0.7]
[1763677937291,3.82553909,136.85,136.75,0.7]
[1763677937491,7.30780473,136.84,136.75,0.7]
[1763677937987,65.31521095,136.86,136.75,0.7]
[1763677937988,7.30746686,136.85,136.75,0.7]
[1763677938195,7.30746686,136.85,136.77,18.12096]
[1763677938713,44.16877658,136.85,136.78,0.7]
[1763677938913,44.16877658,136.85,136.79,1.76]
[1763677939122,36.07093485,136.86,136.79,1.76]
[1763677939292,26.07516079,136.86,136.8,0.7]
[1763677939722,18.76838721,136.86,136.81,1.90216157]
[1763677940007,30.55683338,136.86,136.82,0.7]
[1763677940177,0.1,136.9,136.83,20.02312157]
[1763677940583,18.12096,136.85,136.73,9.78882769]
[1763677940903,25.58666568,136.79,136.71,1.76]
[1763677941114,9.78882769,136.78,136.71,1.76]
[1763677941289,25.58666568,136.79,136.71,1.76]
[1763677941290,18.27618977,136.79,136.71,1.76]
[1763677941617,8.24088021,136.79,136.71,1.76]
[1763677942186,8.24088021,136.79,136.7,0.7]
[1763677942701,7.31261425,136.75,136.68,2.46]
[1763677943210,7.31261425,136.75,136.69,0.7]
[1763677943582,8.07349873,136.76,136.69,0.7]
[1763677943779,24.09447787,136.74,136.66,2.46]
[1763677944031,24.09447787,136.74,136.67,0.7]
[1763677944219,18.12096,136.74,136.67,0.7]
[1763677944585,25.43436107,136.74,136.67,0.7]
[1763677945099,49.69075154,136.74,136.67,0.7]
[1763677945310,5.97351787,136.72,136.64,2.46]
[1763677945516,41.43386409,136.74,136.64,2.46]
[1763677945703,9.78882769,136.73,136.58,9.78882769]
[1763677945908,9.78882769,136.73,136.63,0.7]
[1763677946119,0.14216157,136.72,136.58,0.7]
[1763677946299,9.78882769,136.69,136.58,0.7]
[1763677946503,9.78882769,136.67,136.56,0.7]
[1763677946710,9.78882769,136.65,136.56,0.7]
[1763677946994,11.54882769,136.65,136.54,0.7]
[1763677947639,11.54882769,136.65,136.52,0.2]
[1763677947640,7.99317715,136.64,136.52,0.2]
[1763677947932,13.54882755,136.65,136.44,0.42]
[1763677947933,17.78200484,136.59,136.44,0.42]
[1763677948097,9.78882769,136.57,136.44,0.42]
[1763677948297,9.78882769,136.57,136.45,18.82096]
[1763677948727,7.32278851,136.56,136.46,0.7]
[1763677949115,9.78882769,136.55,136.46,0.7]
[1763677949735,18.12096,136.55,136.46,0.7]
[1763677950402,31.1266116,136.55,136.46,0.7]
[1763677950730,37.84613776,136.59,136.47,0.14216157]
[1763677950932,74.19089876,136.59,136.47,0.14216157]
[1763677951143,8.9674994,136.59,136.49,0.14216157]
[1763677951301,7.31976111,136.62,136.52,18.12096]
[1763677951496,7.31976111,136.62,136.53,1.76]
[1763677951725,9.78882769,136.61,136.53,0.68]
[1763677952024,21.70111346,136.61,136.54,0.68]
[1763677952205,9.78882769,136.63,136.54,0.68]
[1763677952407,27.90978769,136.63,136.54,0.68]
[1763677952730,9.78882769,136.63,136.54,0.68]
[1763677953030,18.12096,136.62,136.54,0.68]
[1763677953211,17.1078645,136.63,136.54,0.68]
[1763677953410,57.73063266,136.63,136.54,0.68]
[1763677953610,80.66631956,136.63,136.54,0.68]
[1763677953809,80.66631956,136.63,136.51,0.68]
[1763677953810,11.54882769,136.62,136.51,0.68]
[1763677954022,11.54882769,136.62,136.52,0.68]
[1763677954351,9.78882769,136.6,136.52,0.68]
[1763677954514,11.54882769,136.62,136.52,0.68]
[1763677954717,46.64909113,136.6,136.52,0.68]
[1763677955227,7.32010833,136.61,136.52,0.68]
[1763677955431,4.83612365,136.6,136.52,0.68]
[1763677955603,4.83612365,136.59,136.52,0.68]
[1763677955805,14.67840672,136.62,136.52,0.68]
[1763677956005,4.83588116,136.61,136.52,0.68]
[1763677956332,58.42941308,136.62,136.52,0.68]
[1763677956627,58.42941308,136.62,136.5,18.12096]
[1763677956628,40.29709907,136.62,136.61,1.72831463]
[1763677956936,31.91660692,136.63,136.61,0.68]
[1763677956937,33.54981191,136.63,136.61,0.68]
[1763677957115,33.54981191,136.63,136.58,1.76]
[1763677957116,21.44567041,136.63,136.58,1.76]
[1763677957306,12.1041415,136.65,136.59,0.14216157]
[1763677957506,22.34698748,136.65,136.59,0.14216157]
[1763677957807,12.1041415,136.68,136.59,0.14216157]
[1763677958109,0.66,136.72,136.63,0.14216157]
[1763677958314,22.35901799,136.72,136.63,0.14216157]
[1763677958514,29.67334109,136.72,136.63,0.14216157]
[1763677958830,22.35901799,136.72,136.63,0.14216157]
[1763677959011,22.35901799,136.72,136.64,0.68]
[1763677959210,30.41209167,136.72,136.65,1.76]
[1763677959413,7.97317771,136.74,136.66,0.68]
[1763677959820,0.66,136.73,136.66,0.68]
[1763677960020,84.12139918,136.75,136.66,0.68]
[1763677960305,82.36139918,136.75,136.66,0.68]
[1763677960927,64.07891437,136.75,136.66,0.68]
[1763677961310,73.16271922,136.75,136.66,0.68]
[1763677961629,9.78882769,136.73,136.64,2.44]
[1763677961934,27.22476485,136.75,136.65,0.82216157]
[1763677962134,9.10380485,136.75,136.65,0.82216157]
[1763677962330,46.03246159,136.75,136.65,0.82216157]
[1763677962506,21.56478559,136.75,136.67,0.14216157]
[1763677962707,7.33113411,136.78,136.7,0.14216157]
[1763677963029,0.02,136.78,136.7,1.90216157]
[1763677963228,0.02,136.78,136.71,0.68]
[1763677963436,8.85338307,136.78,136.71,0.68]
[1763677963609,8.83338307,136.78,136.71,0.68]
[1763677963938,7.31006875,136.8,136.71,0.68]
[1763677964114,9.78882769,136.81,136.71,0.68]
[1763677964443,27.90978769,136.81,136.71,0.68]
[1763677964618,27.90978769,136.81,136.71,2.44]
[1763677965036,36.66385568,136.81,136.71,0.68]
[1763677965245,36.66385568,136.81,136.69,18.12096]
[1763677965246,9.78882769,136.79,136.69,1.76]